[Event "*** Titled Tuesday Blitz"]
[Site "Chess.com"]
[Date "2020.12.29"]
[Round "5"]
[White "realmadridtv"]
[Black "The_filthy"]
[Result "1-0"]
[WhiteElo "2455"]
[BlackElo "2300"]
[TimeControl "180+1"]
[EndTime "10:53:45 PST"]
[Termination "realmadridtv won by resignation"]

1. e4 {[%clk 0:02:11]} 1... d5 {[%clk 0:02:58.3]} 2. e5 {[%clk 0:02:08.2]} 2...
c5 {[%clk 0:02:57.8]} 3. b4 {[%clk 0:02:08.1]} 3... cxb4 {[%clk 0:02:53.1]} 4.
d4 {[%clk 0:02:08.5]} 4... Bf5 {[%clk 0:02:53.2]} 5. Nf3 {[%clk 0:02:07.6]} 5...
Nc6 {[%clk 0:02:53.5]} 6. Be3 {[%clk 0:02:06.1]} 6... e6 {[%clk 0:02:53.7]} 7.
Nbd2 {[%clk 0:02:06]} 7... a6 {[%clk 0:02:46.8]} 8. Be2 {[%clk 0:02:05.9]} 8...
Nge7 {[%clk 0:02:46.5]} 9. Nh4 {[%clk 0:02:04.8]} 9... h6 {[%clk 0:02:44.2]} 10.
g4 {[%clk 0:02:00.7]} 10... Bh7 {[%clk 0:02:43.7]} 11. f4 {[%clk 0:02:01.4]}
11... Nf5 {[%clk 0:02:27.6]} 12. Nxf5 {[%clk 0:01:58.1]} 12... exf5 {[%clk
0:02:27.5]} 13. O-O {[%clk 0:01:56]} 13... Qd7 {[%clk 0:02:21.9]} 14. Bd3 {[%clk
0:01:42.5]} 14... O-O-O {[%clk 0:02:10.7]} 15. Qe2 {[%clk 0:01:39.9]} 15... Kb8
{[%clk 0:02:10]} 16. a3 {[%clk 0:01:38.4]} 16... g5 {[%clk 0:02:03]} 17. fxg5
{[%clk 0:01:34]} 17... hxg5 {[%clk 0:02:03]} 18. gxf5 {[%clk 0:01:33.1]} 18...
f6 {[%clk 0:01:54.3]} 19. axb4 {[%clk 0:01:25.2]} 19... Nxb4 {[%clk 0:01:48.6]}
20. e6 {[%clk 0:01:18.2]} 20... Qc7 {[%clk 0:01:47.2]} 21. Rfb1 {[%clk 0:01:11]}
21... Nxd3 {[%clk 0:01:40.5]} 22. cxd3 {[%clk 0:01:09.8]} 22... Ka8 {[%clk
0:01:29.7]} 23. Nb3 {[%clk 0:01:04.9]} 23... Bxf5 {[%clk 0:01:27.8]} 24. Nc5
{[%clk 0:01:01.3]} 24... Bxc5 {[%clk 0:01:24]} 25. dxc5 {[%clk 0:01:02.2]} 25...
d4 {[%clk 0:01:22.1]} 26. Qg2 {[%clk 0:00:45.5]} 26... Ka7 {[%clk 0:00:59.9]}
27. Bd2 {[%clk 0:00:41.1]} 27... Rb8 {[%clk 0:00:38.6]} 28. Ba5 {[%clk
0:00:38.5]} 28... Qc6 {[%clk 0:00:24.3]} 29. Bb6+ {[%clk 0:00:37.1]} 29... Ka8
{[%clk 0:00:24.4]} 30. Rxa6+ {[%clk 0:00:36.9]} 1-0

[Event "*** Titled Tuesday Blitz"]
[Site "Chess.com"]
[Date "2020.12.29"]
[Round "5"]
[White "Pantata007"]
[Black "HouseOfDurin"]
[Result "1-0"]
[WhiteElo "2283"]
[BlackElo "2087"]
[TimeControl "180+1"]
[EndTime "10:53:47 PST"]
[Termination "Pantata007 won by resignation"]

1. d4 {[%clk 0:02:57.5]} 1... Nf6 {[%clk 0:02:59]} 2. c4 {[%clk 0:02:57.2]} 2...
c5 {[%clk 0:02:59.6]} 3. d5 {[%clk 0:02:56.8]} 3... b5 {[%clk 0:02:59.9]} 4.
cxb5 {[%clk 0:02:57.4]} 4... a6 {[%clk 0:03:00.4]} 5. bxa6 {[%clk 0:02:58.1]}
5... Bxa6 {[%clk 0:03:00.9]} 6. Nc3 {[%clk 0:02:58.2]} 6... d6 {[%clk
0:03:01.5]} 7. e4 {[%clk 0:02:58.1]} 7... Bxf1 {[%clk 0:03:02.4]} 8. Kxf1 {[%clk
0:02:58.4]} 8... Nbd7 {[%clk 0:03:03]} 9. g3 {[%clk 0:02:58.6]} 9... g6 {[%clk
0:03:03.7]} 10. Kg2 {[%clk 0:02:58.9]} 10... Bg7 {[%clk 0:03:04.3]} 11. Nf3
{[%clk 0:02:58.7]} 11... O-O {[%clk 0:03:01.9]} 12. a4 {[%clk 0:02:58.9]} 12...
Qa5 {[%clk 0:02:59.1]} 13. Bd2 {[%clk 0:02:57.8]} 13... Qb4 {[%clk 0:02:55.7]}
14. Qe2 {[%clk 0:02:56.2]} 14... Rfb8 {[%clk 0:02:53.2]} 15. b3 {[%clk 0:02:45]}
15... Ng4 {[%clk 0:01:21.1]} 16. Nb5 {[%clk 0:02:18.6]} 16... Qxb3 {[%clk
0:01:16.9]} 17. Rhb1 {[%clk 0:02:19.1]} 17... Qxb1 {[%clk 0:00:51.1]} 18. Rxb1
{[%clk 0:02:17.9]} 18... Rxa4 {[%clk 0:00:51.7]} 19. Bc3 {[%clk 0:01:56.2]}
19... Nge5 {[%clk 0:00:40.3]} 20. Nd2 {[%clk 0:01:39.6]} 20... Ra2 {[%clk
0:00:20.2]} 21. f4 {[%clk 0:01:33.4]} 21... Ng4 {[%clk 0:00:07.5]} 22. Bxg7
{[%clk 0:01:06.6]} 22... Kxg7 {[%clk 0:00:08.4]} 23. Nc3 {[%clk 0:00:56.7]}
23... Rxb1 {[%clk 0:00:07.7]} 24. Ncxb1 {[%clk 0:00:56.3]} 24... Ngf6 {[%clk
0:00:01]} 25. Nc3 {[%clk 0:00:51.5]} 25... Rc2 {[%clk 0:00:01.1]} 26. Qd3 {[%clk
0:00:50.5]} 26... c4 {[%clk 0:00:01.2]} 27. Qxc2 {[%clk 0:00:50.1]} 27... Nc5
{[%clk 0:00:02.1]} 28. Nxc4 {[%clk 0:00:49.2]} 1-0

[Event "*** Titled Tuesday Blitz"]
[Site "Chess.com"]
[Date "2020.12.29"]
[Round "5"]
[White "JoachimMouhamad"]
[Black "geordie_derraugh"]
[Result "1-0"]
[WhiteElo "2367"]
[BlackElo "2518"]
[TimeControl "180+1"]
[EndTime "10:53:48 PST"]
[Termination "JoachimMouhamad won by resignation"]

1. e4 {[%clk 0:03:00.9]} 1... c5 {[%clk 0:02:59.3]} 2. Nf3 {[%clk 0:03:00.6]}
2... e6 {[%clk 0:02:59.2]} 3. d4 {[%clk 0:03:01.1]} 3... cxd4 {[%clk 0:02:59]}
4. Nxd4 {[%clk 0:03:02]} 4... Nc6 {[%clk 0:02:59.1]} 5. Nc3 {[%clk 0:03:02]}
5... Qc7 {[%clk 0:02:59.1]} 6. Be3 {[%clk 0:03:01.4]} 6... a6 {[%clk 0:02:58.9]}
7. Qd2 {[%clk 0:03:00.4]} 7... Nf6 {[%clk 0:02:58.3]} 8. O-O-O {[%clk
0:02:59.5]} 8... Be7 {[%clk 0:02:58.1]} 9. f3 {[%clk 0:02:58.9]} 9... h5 {[%clk
0:02:58.2]} 10. Nxc6 {[%clk 0:02:48.6]} 10... dxc6 {[%clk 0:02:57.3]} 11. Qf2
{[%clk 0:02:38.1]} 11... b5 {[%clk 0:02:53.2]} 12. Bb6 {[%clk 0:02:31.2]} 12...
Qb7 {[%clk 0:02:52.4]} 13. Bc5 {[%clk 0:02:31.7]} 13... e5 {[%clk 0:02:51]} 14.
Bd6 {[%clk 0:02:23.8]} 14... Bxd6 {[%clk 0:02:31.4]} 15. Rxd6 {[%clk 0:02:22.9]}
15... Be6 {[%clk 0:02:30.8]} 16. Qc5 {[%clk 0:02:15.5]} 16... O-O {[%clk
0:01:54.9]} 17. Qxe5 {[%clk 0:02:01.4]} 17... Qb8 {[%clk 0:01:42]} 18. Qd4
{[%clk 0:01:48.6]} 18... Rc8 {[%clk 0:01:39.4]} 19. Qd2 {[%clk 0:01:34.9]} 19...
c5 {[%clk 0:00:57.9]} 20. Be2 {[%clk 0:01:31.1]} 20... b4 {[%clk 0:00:49.3]} 21.
Na4 {[%clk 0:01:15.4]} 21... c4 {[%clk 0:00:29.6]} 22. Nb6 {[%clk 0:01:05.2]}
22... c3 {[%clk 0:00:29.8]} 23. Qd4 {[%clk 0:01:04.3]} 23... cxb2+ {[%clk
0:00:21.4]} 24. Kxb2 {[%clk 0:01:05.2]} 24... Nd5 {[%clk 0:00:16.7]} 25. Nxc8
{[%clk 0:00:57.1]} 25... Qc7 {[%clk 0:00:08.5]} 26. exd5 {[%clk 0:00:51.1]}
26... Rxc8 {[%clk 0:00:06.1]} 27. Rc6 {[%clk 0:00:48.6]} 27... Qb7 {[%clk
0:00:05.1]} 28. Bxa6 {[%clk 0:00:44.2]} 1-0

[Event "*** Titled Tuesday Blitz"]
[Site "Chess.com"]
[Date "2020.12.29"]
[Round "5"]
[White "kai_nov"]
[Black "FMOlexandrProhorov"]
[Result "1-0"]
[WhiteElo "2372"]
[BlackElo "2151"]
[TimeControl "180+1"]
[EndTime "10:53:48 PST"]
[Termination "kai_nov won on time"]

1. d4 {[%clk 0:03:00.9]} 1... g6 {[%clk 0:02:50.6]} 2. c4 {[%clk 0:03:00.3]}
2... Bg7 {[%clk 0:02:49.1]} 3. e4 {[%clk 0:03:00.6]} 3... d6 {[%clk 0:02:47.5]}
4. Nc3 {[%clk 0:03:00.8]} 4... e5 {[%clk 0:02:46.9]} 5. d5 {[%clk 0:03:00.4]}
5... a5 {[%clk 0:02:45.1]} 6. Bd3 {[%clk 0:02:59.8]} 6... Na6 {[%clk 0:02:43]}
7. Nge2 {[%clk 0:02:59.6]} 7... Nc5 {[%clk 0:02:39]} 8. Bc2 {[%clk 0:02:59.6]}
8... Bd7 {[%clk 0:02:37.7]} 9. O-O {[%clk 0:02:51]} 9... Bh6 {[%clk 0:02:16.5]}
10. a3 {[%clk 0:02:47.6]} 10... Bxc1 {[%clk 0:02:14.8]} 11. Qxc1 {[%clk
0:02:47.8]} 11... a4 {[%clk 0:02:13.2]} 12. Ng3 {[%clk 0:02:44.6]} 12... Qe7
{[%clk 0:02:01.7]} 13. f4 {[%clk 0:02:39.6]} 13... exf4 {[%clk 0:01:56.7]} 14.
Qxf4 {[%clk 0:02:38.8]} 14... f6 {[%clk 0:01:20.1]} 15. Nge2 {[%clk 0:02:38.3]}
15... Kf7 {[%clk 0:01:01.1]} 16. Nd4 {[%clk 0:02:35.6]} 16... Kg7 {[%clk
0:00:59.7]} 17. Rae1 {[%clk 0:02:27.4]} 17... Nh6 {[%clk 0:00:56.8]} 18. Ne6+
{[%clk 0:02:18.7]} 18... Bxe6 {[%clk 0:00:53.6]} 19. dxe6 {[%clk 0:02:18.6]}
19... Nxe6 {[%clk 0:00:48.8]} 20. Qh4 {[%clk 0:02:12.9]} 20... g5 {[%clk
0:00:17.1]} 21. Qg3 {[%clk 0:02:00.2]} 21... c6 {[%clk 0:00:16.8]} 22. Bxa4
{[%clk 0:01:56.1]} 22... Raf8 {[%clk 0:00:14.9]} 23. Bc2 {[%clk 0:01:50.8]}
23... Nf7 {[%clk 0:00:14.3]} 24. h4 {[%clk 0:01:49.2]} 24... h6 {[%clk 0:00:14]}
25. Rf5 {[%clk 0:01:46.8]} 25... Ne5 {[%clk 0:00:13.8]} 26. b3 {[%clk
0:01:41.4]} 26... Nd4 {[%clk 0:00:13.3]} 27. Rf2 {[%clk 0:01:41.4]} 27... Rhg8
{[%clk 0:00:12.3]} 28. Ref1 {[%clk 0:01:28.9]} 28... Kh7 {[%clk 0:00:09.4]} 29.
Bd1 {[%clk 0:01:21.4]} 29... Ne6 {[%clk 0:00:08]} 30. Bg4 {[%clk 0:01:17.4]}
30... Nf4 {[%clk 0:00:07]} 31. Bf5+ {[%clk 0:01:16.6]} 31... Kh8 {[%clk
0:00:06.8]} 32. Rxf4 {[%clk 0:01:13.6]} 32... gxf4 {[%clk 0:00:06.2]} 33. Qxf4
{[%clk 0:01:14]} 33... Qg7 {[%clk 0:00:06.3]} 34. Qd2 {[%clk 0:01:07.4]} 1-0

[Event "*** Titled Tuesday Blitz"]
[Site "Chess.com"]
[Date "2020.12.29"]
[Round "5"]
[White "NaciSAN"]
[Black "AliKa2810"]
[Result "0-1"]
[WhiteElo "2164"]
[BlackElo "2592"]
[TimeControl "180+1"]
[EndTime "10:53:49 PST"]
[Termination "AliKa2810 won by resignation"]

1. e4 {[%clk 0:03:00.9]} 1... c6 {[%clk 0:02:59.6]} 2. d4 {[%clk 0:03:00.6]}
2... d5 {[%clk 0:03:00.2]} 3. Nc3 {[%clk 0:03:01.2]} 3... dxe4 {[%clk
0:03:00.1]} 4. Nxe4 {[%clk 0:03:02.1]} 4... Nd7 {[%clk 0:03:00.6]} 5. Ng5 {[%clk
0:03:01.9]} 5... Ngf6 {[%clk 0:03:00.3]} 6. Bd3 {[%clk 0:03:02.1]} 6... e6
{[%clk 0:03:00.6]} 7. N1f3 {[%clk 0:03:02.2]} 7... Bd6 {[%clk 0:02:56.4]} 8. Qe2
{[%clk 0:03:02.2]} 8... h6 {[%clk 0:02:56]} 9. Ne4 {[%clk 0:03:02.8]} 9... Nxe4
{[%clk 0:02:56.2]} 10. Qxe4 {[%clk 0:03:03.7]} 10... Qc7 {[%clk 0:02:56.7]} 11.
O-O {[%clk 0:03:02.9]} 11... b6 {[%clk 0:02:53.4]} 12. Bd2 {[%clk 0:02:59.8]}
12... Bb7 {[%clk 0:02:52.4]} 13. Qe2 {[%clk 0:02:58.5]} 13... O-O {[%clk
0:02:42.3]} 14. Qe4 {[%clk 0:02:54.1]} 14... Nf6 {[%clk 0:02:39.9]} 15. Qh4
{[%clk 0:02:53.8]} 15... Nd5 {[%clk 0:01:55.2]} 16. Bxh6 {[%clk 0:02:27.2]}
16... gxh6 {[%clk 0:01:53.6]} 17. Qxh6 {[%clk 0:02:28.1]} 17... f5 {[%clk
0:01:52.8]} 18. Qxe6+ {[%clk 0:02:24.3]} 18... Kg7 {[%clk 0:01:43.6]} 19. Nh4
{[%clk 0:02:06.5]} 19... Ne7 {[%clk 0:01:10.1]} 20. Nxf5+ {[%clk 0:01:38.8]}
20... Rxf5 {[%clk 0:01:09.4]} 21. Bxf5 {[%clk 0:01:38.2]} 21... Bc8 {[%clk
0:01:10]} 22. Qe3 {[%clk 0:01:15.9]} 22... Bxf5 {[%clk 0:01:09.5]} 23. Qg5+
{[%clk 0:01:15.4]} 23... Bg6 {[%clk 0:01:09.3]} 24. f4 {[%clk 0:01:15.4]} 24...
Rf8 {[%clk 0:01:06.5]} 25. f5 {[%clk 0:01:02.1]} 25... Bxh2+ {[%clk 0:00:49.7]}
26. Kh1 {[%clk 0:01:02.2]} 26... Nxf5 {[%clk 0:00:48.7]} 27. Rf3 {[%clk
0:00:19]} 27... Ng3+ {[%clk 0:00:42.7]} 0-1

[Event "*** Titled Tuesday Blitz"]
[Site "Chess.com"]
[Date "2020.12.29"]
[Round "5"]
[White "freshfoodcompany"]
[Black "Neftegor"]
[Result "1-0"]
[WhiteElo "2420"]
[BlackElo "2560"]
[TimeControl "180+1"]
[EndTime "10:53:53 PST"]
[Termination "freshfoodcompany won by resignation"]

1. d4 {[%clk 0:03:00.9]} 1... Nf6 {[%clk 0:02:58.7]} 2. c4 {[%clk 0:03:01.4]}
2... e6 {[%clk 0:02:58.1]} 3. Nf3 {[%clk 0:03:00.8]} 3... Bb4+ {[%clk
0:02:57.1]} 4. Bd2 {[%clk 0:02:59.7]} 4... Qe7 {[%clk 0:02:55.2]} 5. e3 {[%clk
0:02:57.9]} 5... a5 {[%clk 0:02:53.1]} 6. Bd3 {[%clk 0:02:56.2]} 6... O-O {[%clk
0:02:51.6]} 7. O-O {[%clk 0:02:54.6]} 7... Bxd2 {[%clk 0:02:43.5]} 8. Qxd2
{[%clk 0:02:53]} 8... d6 {[%clk 0:02:40.9]} 9. Nc3 {[%clk 0:02:52.4]} 9... e5
{[%clk 0:02:29]} 10. Bc2 {[%clk 0:02:48.6]} 10... Nbd7 {[%clk 0:02:26.3]} 11.
Rfe1 {[%clk 0:02:38.9]} 11... h6 {[%clk 0:02:25]} 12. Nh4 {[%clk 0:02:32.4]}
12... e4 {[%clk 0:02:11.1]} 13. Nf5 {[%clk 0:02:30.4]} 13... Qe6 {[%clk
0:02:11.1]} 14. Ng3 {[%clk 0:02:29.4]} 14... Qxc4 {[%clk 0:02:07.1]} 15. Bb3
{[%clk 0:02:19.6]} 15... Qa6 {[%clk 0:02:02.3]} 16. Ngxe4 {[%clk 0:02:16.1]}
16... Nxe4 {[%clk 0:02:00.8]} 17. Nxe4 {[%clk 0:02:15.5]} 17... a4 {[%clk
0:01:56.9]} 18. Bc2 {[%clk 0:02:14.7]} 18... Re8 {[%clk 0:01:55.5]} 19. Ng3
{[%clk 0:02:13.8]} 19... Nf6 {[%clk 0:01:54.6]} 20. e4 {[%clk 0:02:13]} 20...
Qa5 {[%clk 0:01:52.3]} 21. Qd3 {[%clk 0:02:11.3]} 21... Bd7 {[%clk 0:01:37.5]}
22. e5 {[%clk 0:02:08.4]} 22... dxe5 {[%clk 0:01:36.5]} 23. dxe5 {[%clk
0:02:07.5]} 23... Rxe5 {[%clk 0:01:36.2]} 24. Rxe5 {[%clk 0:02:03.6]} 24... Qxe5
{[%clk 0:01:35.9]} 25. Rd1 {[%clk 0:01:52.9]} 25... Bc6 {[%clk 0:01:33.4]} 26.
f4 {[%clk 0:01:45.6]} 26... Qxb2 {[%clk 0:01:25.7]} 27. Nh5 {[%clk 0:01:40.1]}
27... g6 {[%clk 0:01:23.3]} 28. Rb1 {[%clk 0:01:32.5]} 28... Qxb1+ {[%clk
0:01:11.4]} 29. Bxb1 {[%clk 0:01:31.5]} 29... Nxh5 {[%clk 0:01:08.1]} 30. f5
{[%clk 0:01:30.8]} 30... g5 {[%clk 0:01:06.2]} 31. g3 {[%clk 0:01:28.2]} 31...
Nf6 {[%clk 0:01:06.1]} 32. Qd4 {[%clk 0:01:27.3]} 32... Kg7 {[%clk 0:01:06]} 33.
Bc2 {[%clk 0:01:23.8]} 33... Re8 {[%clk 0:01:04.2]} 34. Kf2 {[%clk 0:01:22.5]}
34... Bb5 {[%clk 0:01:00.5]} 35. Bd3 {[%clk 0:01:04]} 35... c5 {[%clk 0:00:58]}
36. Qc3 {[%clk 0:00:58.9]} 36... c4 {[%clk 0:00:57]} 37. Bc2 {[%clk 0:00:54.4]}
37... Bc6 {[%clk 0:00:46.3]} 38. Qxc4 {[%clk 0:00:50.9]} 38... Ng4+ {[%clk
0:00:27]} 39. Qxg4 {[%clk 0:00:49]} 1-0

[Event "*** Titled Tuesday Blitz"]
[Site "Chess.com"]
[Date "2020.12.29"]
[Round "5"]
[White "Lady_Nika"]
[Black "QuintilianoR"]
[Result "0-1"]
[WhiteElo "2316"]
[BlackElo "2666"]
[TimeControl "180+1"]
[EndTime "10:53:56 PST"]
[Termination "QuintilianoR won by checkmate"]

1. d4 {[%clk 0:03:00.9]} 1... d5 {[%clk 0:02:58.7]} 2. e3 {[%clk 0:03:00.8]}
2... Nf6 {[%clk 0:02:57.9]} 3. f4 {[%clk 0:03:00.7]} 3... g6 {[%clk 0:02:54.5]}
4. Nf3 {[%clk 0:03:00.7]} 4... Bg7 {[%clk 0:02:54.7]} 5. c3 {[%clk 0:03:01]}
5... O-O {[%clk 0:02:55.1]} 6. Bd3 {[%clk 0:03:01.3]} 6... b6 {[%clk 0:02:55.2]}
7. Nbd2 {[%clk 0:03:01.5]} 7... Ba6 {[%clk 0:02:54.5]} 8. Bxa6 {[%clk
0:03:01.3]} 8... Nxa6 {[%clk 0:02:55.4]} 9. O-O {[%clk 0:03:01.8]} 9... c5
{[%clk 0:02:55.2]} 10. Ne5 {[%clk 0:03:01.9]} 10... Qd6 {[%clk 0:02:47.8]} 11.
b3 {[%clk 0:03:01.5]} 11... Rfc8 {[%clk 0:02:44.7]} 12. Bb2 {[%clk 0:03:01.2]}
12... cxd4 {[%clk 0:02:41.6]} 13. exd4 {[%clk 0:03:01.2]} 13... Nc7 {[%clk
0:02:41.4]} 14. Qe2 {[%clk 0:03:00.7]} 14... a5 {[%clk 0:02:39.5]} 15. a3 {[%clk
0:02:55.4]} 15... Nce8 {[%clk 0:02:33.2]} 16. a4 {[%clk 0:02:54.3]} 16... Qc7
{[%clk 0:02:31.9]} 17. Rac1 {[%clk 0:02:53.4]} 17... Nd6 {[%clk 0:02:31.1]} 18.
c4 {[%clk 0:02:36]} 18... Qb7 {[%clk 0:02:22.6]} 19. Rfe1 {[%clk 0:02:31.7]}
19... e6 {[%clk 0:02:21.5]} 20. Ba3 {[%clk 0:02:30.6]} 20... Nde4 {[%clk
0:02:18.8]} 21. Nxe4 {[%clk 0:02:30.2]} 21... Nxe4 {[%clk 0:02:17.2]} 22. cxd5
{[%clk 0:02:30.1]} 22... Rxc1 {[%clk 0:02:05.7]} 23. Rxc1 {[%clk 0:02:29.5]}
23... Qxd5 {[%clk 0:02:05]} 24. Qc4 {[%clk 0:02:22.5]} 24... Nd2 {[%clk
0:01:48.7]} 25. Qxd5 {[%clk 0:02:20]} 25... exd5 {[%clk 0:01:49.6]} 26. b4
{[%clk 0:02:03.5]} 26... axb4 {[%clk 0:01:43.7]} 27. Bxb4 {[%clk 0:02:03.5]}
27... Nc4 {[%clk 0:01:38.7]} 28. Nxc4 {[%clk 0:02:02.3]} 28... Bxd4+ {[%clk
0:01:35.6]} 29. Kf1 {[%clk 0:02:02.4]} 29... Rc8 {[%clk 0:01:33.5]} 30. Ke2
{[%clk 0:01:55.4]} 30... Rxc4 {[%clk 0:01:29]} 31. Rxc4 {[%clk 0:01:54.5]} 31...
dxc4 {[%clk 0:01:29.9]} 32. a5 {[%clk 0:01:54.5]} 32... bxa5 {[%clk 0:01:28.8]}
33. Bxa5 {[%clk 0:01:54.3]} 33... f5 {[%clk 0:01:29.2]} 34. h3 {[%clk 0:01:53]}
34... Kf7 {[%clk 0:01:29.4]} 35. g4 {[%clk 0:01:53.1]} 35... Ke6 {[%clk
0:01:29.1]} 36. Bb4 {[%clk 0:01:36.9]} 36... Kd5 {[%clk 0:01:27.5]} 37. Kf3
{[%clk 0:01:36.1]} 37... h5 {[%clk 0:01:23.4]} 38. gxh5 {[%clk 0:01:34.9]} 38...
gxh5 {[%clk 0:01:24.3]} 39. Kg3 {[%clk 0:01:35.1]} 39... Bf6 {[%clk 0:01:23.8]}
40. Kf3 {[%clk 0:01:31.5]} 40... c3 {[%clk 0:01:23.2]} 41. Ba3 {[%clk
0:01:29.7]} 41... Kc4 {[%clk 0:01:22.7]} 42. Ke3 {[%clk 0:01:29.7]} 42... Bd4+
{[%clk 0:01:20.6]} 43. Ke2 {[%clk 0:01:26.5]} 43... Kb3 {[%clk 0:01:16.6]} 44.
Bc1 {[%clk 0:01:26.5]} 44... Bc5 {[%clk 0:01:13.5]} 45. Kd3 {[%clk 0:01:26.2]}
45... Bf2 {[%clk 0:01:09.1]} 46. Ke2 {[%clk 0:01:18.2]} 46... Kc2 {[%clk
0:01:08]} 47. Ba3 {[%clk 0:01:16.9]} 47... Bd4 {[%clk 0:01:08.3]} 48. Bb4 {[%clk
0:01:14.1]} 48... Kb3 {[%clk 0:01:06.5]} 49. Bxc3 {[%clk 0:01:10.4]} 49... Kxc3
{[%clk 0:01:06.2]} 50. Kf3 {[%clk 0:01:10.8]} 50... h4 {[%clk 0:01:05.1]} 51.
Ke2 {[%clk 0:01:10]} 51... Kc2 {[%clk 0:01:05.5]} 52. Ke1 {[%clk 0:01:07.3]}
52... Kd3 {[%clk 0:01:06.4]} 53. Kf1 {[%clk 0:01:07.5]} 53... Ke4 {[%clk
0:01:07.3]} 54. Kg2 {[%clk 0:01:08]} 54... Kxf4 {[%clk 0:01:08.2]} 55. Kh1
{[%clk 0:01:08.5]} 55... Be5 {[%clk 0:01:09.1]} 56. Kg2 {[%clk 0:01:08.5]} 56...
Bf6 {[%clk 0:01:10]} 57. Kf2 {[%clk 0:01:08.3]} 57... Ke4 {[%clk 0:01:10.2]} 58.
Kg2 {[%clk 0:01:08.9]} 58... f4 {[%clk 0:01:11.1]} 59. Kf2 {[%clk 0:01:09.5]}
59... f3 {[%clk 0:01:12]} 60. Kg1 {[%clk 0:01:09.9]} 60... Ke3 {[%clk
0:01:12.1]} 61. Kh1 {[%clk 0:01:09.5]} 61... Ke2 {[%clk 0:01:12.2]} 62. Kh2
{[%clk 0:01:09.5]} 62... f2 {[%clk 0:01:12.2]} 63. Kh1 {[%clk 0:01:06.7]} 63...
f1=Q+ {[%clk 0:01:12]} 64. Kh2 {[%clk 0:01:07.1]} 64... Be5# {[%clk 0:01:12.9]}
0-1

[Event "*** Titled Tuesday Blitz"]
[Site "Chess.com"]
[Date "2020.12.29"]
[Round "5"]
[White "GMBenjaminBok"]
[Black "LiderChessAcademy"]
[Result "1-0"]
[WhiteElo "2876"]
[BlackElo "2614"]
[TimeControl "180+1"]
[EndTime "10:53:58 PST"]
[Termination "GMBenjaminBok won by resignation"]

1. d4 {[%clk 0:03:00.9]} 1... Nf6 {[%clk 0:02:58]} 2. c4 {[%clk 0:03:00.8]} 2...
g6 {[%clk 0:02:57.8]} 3. Nc3 {[%clk 0:02:57.4]} 3... d5 {[%clk 0:02:57.9]} 4.
cxd5 {[%clk 0:02:56.7]} 4... Nxd5 {[%clk 0:02:58.8]} 5. e4 {[%clk 0:02:57]} 5...
Nxc3 {[%clk 0:02:59]} 6. bxc3 {[%clk 0:02:57.9]} 6... Bg7 {[%clk 0:02:58.8]} 7.
Nf3 {[%clk 0:02:58.6]} 7... c5 {[%clk 0:02:59.2]} 8. Be3 {[%clk 0:02:59.2]} 8...
Qa5 {[%clk 0:02:55.3]} 9. Qd2 {[%clk 0:02:59.4]} 9... O-O {[%clk 0:02:53]} 10.
Rc1 {[%clk 0:02:58.8]} 10... Rd8 {[%clk 0:02:50.7]} 11. d5 {[%clk 0:02:58.3]}
11... e6 {[%clk 0:02:50.8]} 12. Bg5 {[%clk 0:02:48.2]} 12... f6 {[%clk
0:02:49.2]} 13. Be3 {[%clk 0:02:40.1]} 13... f5 {[%clk 0:01:58.4]} 14. Bc4
{[%clk 0:01:57.4]} 14... b5 {[%clk 0:01:53.2]} 15. dxe6 {[%clk 0:01:44.2]} 15...
bxc4 {[%clk 0:01:44.9]} 16. e7 {[%clk 0:01:42.6]} 16... Re8 {[%clk 0:01:21.3]}
17. Qd5+ {[%clk 0:01:43]} 17... Kh8 {[%clk 0:01:20.5]} 18. Qxa8 {[%clk
0:01:23.2]} 18... Bxc3+ {[%clk 0:01:00.8]} 19. Kf1 {[%clk 0:01:20]} 19... Nd7
{[%clk 0:00:52.4]} 20. Qd5 {[%clk 0:01:18]} 20... Rxe7 {[%clk 0:00:43.1]} 21.
exf5 {[%clk 0:00:58]} 21... Nf6 {[%clk 0:00:35]} 22. Qxc5 {[%clk 0:00:53.8]}
22... Rf7 {[%clk 0:00:15.6]} 23. Qxc8+ {[%clk 0:00:50.1]} 23... Kg7 {[%clk
0:00:14]} 24. Qxc4 {[%clk 0:00:45.3]} 24... Rc7 {[%clk 0:00:11.1]} 25. Qd3
{[%clk 0:00:37.2]} 25... Rd7 {[%clk 0:00:09.3]} 26. Qxc3 {[%clk 0:00:33.7]}
26... Rd1+ {[%clk 0:00:09.3]} 27. Ke2 {[%clk 0:00:31.5]} 1-0

[Event "*** Titled Tuesday Blitz"]
[Site "Chess.com"]
[Date "2020.12.29"]
[Round "5"]
[White "renehp"]
[Black "BeanScreen"]
[Result "1-0"]
[WhiteElo "2457"]
[BlackElo "2644"]
[TimeControl "180+1"]
[EndTime "10:53:59 PST"]
[Termination "renehp won on time"]

1. e4 {[%clk 0:03:00]} 1... e5 {[%clk 0:03:00.2]} 2. Nf3 {[%clk 0:02:59.5]} 2...
Nc6 {[%clk 0:03:00.5]} 3. d4 {[%clk 0:02:59.8]} 3... exd4 {[%clk 0:03:00.2]} 4.
Nxd4 {[%clk 0:03:00.7]} 4... Bc5 {[%clk 0:03:00.3]} 5. Nb3 {[%clk 0:03:00.5]}
5... Bb4+ {[%clk 0:02:59.8]} 6. c3 {[%clk 0:02:59.7]} 6... Be7 {[%clk
0:03:00.2]} 7. g3 {[%clk 0:02:56.2]} 7... Nf6 {[%clk 0:02:58]} 8. Bg2 {[%clk
0:02:56.6]} 8... d6 {[%clk 0:02:56.4]} 9. O-O {[%clk 0:02:56.9]} 9... Bg4 {[%clk
0:02:10.8]} 10. f3 {[%clk 0:02:54.8]} 10... Be6 {[%clk 0:02:10.6]} 11. Be3
{[%clk 0:02:54]} 11... Qd7 {[%clk 0:02:08.9]} 12. N1d2 {[%clk 0:02:51.6]} 12...
h5 {[%clk 0:02:05.8]} 13. Nd4 {[%clk 0:02:46]} 13... Nxd4 {[%clk 0:02:03.5]} 14.
cxd4 {[%clk 0:02:44.2]} 14... Bh3 {[%clk 0:02:02.8]} 15. Qb3 {[%clk 0:02:38.2]}
15... O-O-O {[%clk 0:01:50.8]} 16. Rac1 {[%clk 0:02:31.2]} 16... Bxg2 {[%clk
0:01:28]} 17. Kxg2 {[%clk 0:02:32.1]} 17... h4 {[%clk 0:01:28.9]} 18. g4 {[%clk
0:02:26.9]} 18... Kb8 {[%clk 0:00:41.6]} 19. h3 {[%clk 0:02:19.5]} 19... Qe6
{[%clk 0:00:38.7]} 20. d5 {[%clk 0:02:02.9]} 20... Qd7 {[%clk 0:00:38.6]} 21.
Nc4 {[%clk 0:02:01.5]} 21... Ka8 {[%clk 0:00:21.7]} 22. Na5 {[%clk 0:01:47.4]}
22... Qc8 {[%clk 0:00:18]} 23. Qb4 {[%clk 0:01:45.6]} 23... Rde8 {[%clk
0:00:15]} 24. Rf2 {[%clk 0:01:43.7]} 24... Bd8 {[%clk 0:00:14.4]} 25. Qd4 {[%clk
0:01:40]} 25... Qb8 {[%clk 0:00:14.5]} 26. Rfc2 {[%clk 0:01:37]} 26... Nd7
{[%clk 0:00:13.9]} 27. b4 {[%clk 0:01:32.3]} 27... Bf6 {[%clk 0:00:12.5]} 28.
Qd3 {[%clk 0:01:28.1]} 28... Rc8 {[%clk 0:00:11.7]} 29. a4 {[%clk 0:01:26.1]}
29... Ne5 {[%clk 0:00:10]} 30. Qe2 {[%clk 0:01:24.8]} 30... Rhe8 {[%clk
0:00:08.6]} 31. b5 {[%clk 0:01:18.6]} 31... b6 {[%clk 0:00:08.1]} 32. Nc6 {[%clk
0:01:17.4]} 32... Nxc6 {[%clk 0:00:05.4]} 33. bxc6 {[%clk 0:01:18.3]} 33... Re7
{[%clk 0:00:05.6]} 34. a5 {[%clk 0:01:18.2]} 34... b5 {[%clk 0:00:03.9]} 35. a6
{[%clk 0:01:17.9]} 35... Rce8 {[%clk 0:00:02.9]} 36. Rb1 {[%clk 0:01:16.8]}
36... b4 {[%clk 0:00:03.3]} 37. Qc4 {[%clk 0:01:15.6]} 37... Qc8 {[%clk
0:00:01.3]} 38. Rxb4 {[%clk 0:01:14.4]} 38... Be5 {[%clk 0:00:01.2]} 39. Rb7
{[%clk 0:01:12.7]} 1-0